bitfinex/quotes_BTCUSD_20241025
["timestamp","ask_amount","ask_price","bid_price","bid_amount"]
[1729866016333,0.005,68498.0,68497.0,0.145991]
[1729866016334,0.01,68498.0,68497.0,0.145991]
[1729866016576,0.01,68498.0,68497.0,0.15050381]
[1729866016807,0.0984,68510.0,68489.0,0.146008]
[1729866016808,0.01,68490.0,68489.0,0.146008]
[1729866017044,0.005,68485.0,68483.0,0.51226166]
[1729866017274,0.005,68485.0,68484.0,0.15050381]
[1729866017275,0.01,68485.0,68484.0,0.15050381]
[1729866017508,0.01,68485.0,68476.0,0.292071]
[1729866017732,0.40988014,68483.0,68469.0,0.00165]
[1729866017978,0.40988014,68483.0,68477.0,0.22022066]
[1729866018210,0.53199415,68483.0,68469.0,0.00165]
[1729866018429,0.27385914,68483.0,68478.0,0.22022066]
[1729866018659,0.41988014,68483.0,68469.0,0.00165]
[1729866018895,0.41988014,68483.0,68470.0,0.146048]
[1729866019122,0.41988014,68483.0,68471.0,0.146046]
[1729866019351,0.27385914,68483.0,68471.0,0.292093]
[1729866019624,0.27385914,68483.0,68479.0,0.14603]
[1729866019625,0.01,68483.0,68479.0,0.14603]
[1729866020810,0.01,68483.0,68478.0,0.146032]
[1729866021040,0.01,68483.0,68479.0,0.146029]
[1729866021548,0.01,68483.0,68482.0,0.30173881]
[1729866022014,0.01,68483.0,68482.0,0.30840887]
[1729866022272,4e-05,68485.0,68484.0,0.169019]
[1729866022273,0.00504,68485.0,68484.0,0.169019]
[1729866022511,0.00504,68485.0,68484.0,0.15050381]
[1729866022512,0.01004,68485.0,68484.0,0.15050381]
[1729866022764,0.01004,68485.0,68484.0,0.30317608]
[1729866023237,0.00504,68485.0,68484.0,0.30609632]
[1729866023645,4e-05,68485.0,68484.0,0.30609632]
[1729866023872,4e-05,68485.0,68484.0,0.32617608]
[1729866025299,4e-05,68485.0,68484.0,0.42617608]
[1729866025728,4e-05,68485.0,68484.0,0.46829829]
[1729866026021,0.005,68506.0,68505.0,0.145974]
[1729866026235,0.005,68506.0,68505.0,0.29647781]
[1729866026440,0.01,68506.0,68505.0,0.30313239]
[1729866026889,0.01,68511.0,68507.0,0.14597]
[1729866027145,0.005,68517.0,68516.0,0.145951]
[1729866027378,0.005,68517.0,68516.0,0.29645481]
[1729866027587,0.01,68517.0,68516.0,0.30309275]
[1729866027805,0.01,68517.0,68516.0,0.15714175]
[1729866028031,0.01,68517.0,68516.0,0.30309275]
[1729866030013,0.005,68517.0,68516.0,0.55195189]
[1729866030236,0.005,68517.0,68516.0,0.57495189]
[1729866031374,0.01,68517.0,68516.0,0.15714175]
[1729866031584,0.01,68517.0,68516.0,0.30309275]
[1729866033059,0.01,68517.0,68516.0,0.15714175]
[1729866033298,0.01004,68517.0,68516.0,0.00663794]
[1729866033723,0.01,68513.0,68512.0,0.22022066]
[1729866033948,0.005,68502.0,68498.0,0.291975]
[1729866034144,0.24885914,68513.0,68493.0,0.51221866]
[1729866034145,0.01,68501.0,68493.0,0.51221866]
[1729866034350,0.005,68499.0,68498.0,0.145989]
[1729866034560,0.005,68499.0,68498.0,0.29649281]
[1729866036296,0.01,68499.0,68498.0,0.15050381]
[1729866036505,0.01,68499.0,68498.0,0.29649281]
[1729866036718,0.01,68499.0,68498.0,0.30301563]
[1729866038009,0.01,68499.0,68498.0,0.15702663]
[1729866038223,0.01004,68499.0,68498.0,0.30301563]
[1729866040217,0.01204,68499.0,68498.0,0.00652282]
[1729866040440,0.01504,68499.0,68498.0,0.00652282]
[1729866040842,0.01504,68499.0,68489.0,0.22186866]
[1729866040843,0.005,68495.0,68494.0,0.145998]
[1729866041074,0.005,68497.0,68493.0,0.54085914]
[1729866041075,0.005,68494.0,68493.0,0.54085914]
[1729866041323,0.0046,68497.0,68496.0,0.145993]
[1729866041575,0.00464,68499.0,68498.0,0.145989]
[1729866041815,0.00464,68499.0,68498.0,0.41784814]
[1729866042053,4e-05,68499.0,68498.0,0.41784814]
[1729866042275,4e-05,68499.0,68498.0,2.06835195]
[1729866043007,4e-05,68499.0,68498.0,0.56835195]
[1729866048932,4e-05,68499.0,68498.0,0.31949281]
[1729866049177,0.00504,68499.0,68498.0,0.15050381]
[1729866049435,0.00964,68499.0,68498.0,0.15050381]
[1729866049687,0.005,68493.0,68492.0,0.292004]
[1729866049920,0.0096,68493.0,68492.0,0.29650581]
[1729866051138,0.0046,68493.0,68492.0,0.29650581]
[1729866051606,0.0046,68493.0,68492.0,0.61150981]
[1729866051860,0.0096,68493.0,68492.0,0.58850981]
[1729866052090,0.0096,68493.0,68492.0,0.15050381]
[1729866052314,0.0096,68493.0,68492.0,0.29650581]
[1729866053715,0.0046,68493.0,68492.0,0.29650581]
[1729866053952,0.0046,68497.0,68494.0,0.023]
[1729866054185,4e-05,68499.0,68498.0,0.145989]
[1729866054459,0.00464,68499.0,68498.0,0.29645281]
[1729866054682,0.00464,68499.0,68493.0,0.292]
[1729866054683,0.005,68494.0,68493.0,0.292]
[1729866054903,0.0096,68494.0,68493.0,0.58850381]
[1729866055389,0.0046,68494.0,68493.0,0.58850381]
[1729866055623,0.0096,68494.0,68493.0,0.58850381]
[1729866058719,0.0096,68494.0,68493.0,0.61150381]
[1729866058946,4e-05,68499.0,68498.0,0.145989]
[1729866059174,4e-05,68499.0,68498.0,0.56835195]
[1729866059424,0.00464,68499.0,68498.0,0.56835195]
[1729866060389,0.005465,68499.0,68498.0,0.56835195]
[1729866060637,0.000865,68499.0,68498.0,0.56835195]
[1729866061585,0.005465,68499.0,68498.0,0.56835195]
[1729866062342,0.005465,68499.0,68498.0,0.31949281]
[1729866063075,0.000865,68499.0,68498.0,0.53971347]
[1729866063317,0.000865,68499.0,68498.0,0.41949281]
[1729866064520,0.000865,68499.0,68498.0,0.31949281]
[1729866066448,0.000905,68499.0,68498.0,0.31949281]
[1729866066675,0.005505,68499.0,68498.0,0.31949281]
[1729866066932,0.005505,68499.0,68498.0,0.15050381]
[1729866066933,0.010505,68499.0,68498.0,0.15050381]
[1729866067246,0.0096,68494.0,68493.0,0.14765]
[1729866067440,0.0096,68494.0,68493.0,0.29815381]
[1729866067712,0.0116,68494.0,68493.0,0.00165]
[1729866067940,0.0096,68494.0,68493.0,0.00165]
[1729866068393,0.0267493,68494.0,68493.0,0.00165]
[1729866068656,0.170598,68494.0,68493.0,0.00165]
[1729866068894,0.0246,68494.0,68493.0,0.00165]
[1729866069384,0.50165714,68494.0,68493.0,0.00165]
[1729866069610,0.50365714,68494.0,68493.0,0.00165]
[1729866069875,0.0096,68494.0,68493.0,0.00165]
[1729866070802,0.0146,68494.0,68493.0,0.00165]
[1729866071036,0.172598,68494.0,68493.0,0.00165]
[1729866071259,0.370398,68494.0,68493.0,0.00165]
[1729866071522,0.70969711,68494.0,68493.0,0.00165]
[1729866072006,0.86020092,68494.0,68493.0,0.00165]
[1729866072231,0.86838706,68494.0,68493.0,0.00165]
[1729866072468,0.86019308,68494.0,68493.0,0.00165]
[1729866072970,0.69605714,68494.0,68493.0,0.00165]
[1729866073206,0.445198,68494.0,68493.0,0.00165]
[1729866073446,0.1942,68494.0,68493.0,0.00165]
[1729866073708,0.340198,68494.0,68493.0,0.00165]
[1729866073949,0.347238,68494.0,68493.0,0.00165]
[1729866074860,0.45813719,68494.0,68493.0,0.00165]
[1729866075762,0.70699633,68494.0,68493.0,0.00165]
[1729866076470,0.69609714,68494.0,68493.0,0.00165]
[1729866076926,0.447238,68494.0,68493.0,0.00165]
[1729866078013,0.11244,68494.0,68493.0,0.00165]
[1729866078944,0.3121711,68494.0,68493.0,0.00165]
[1729866079383,0.21244,68494.0,68493.0,0.00165]
[1729866079661,0.21744,68494.0,68493.0,0.00165]
[1729866079865,0.12244,68494.0,68493.0,0.00165]
[1729866080103,0.00964,68494.0,68493.0,0.00165]
[1729866080333,0.00964,68494.0,68493.0,0.14765]
[1729866080795,0.00464,68494.0,68493.0,0.14765]
[1729866081028,0.00464,68494.0,68493.0,0.51837447]
[1729866081318,4e-05,68494.0,68493.0,0.32115381]
[1729866081596,0.00464,68494.0,68493.0,1.82115381]
[1729866081828,4e-05,68494.0,68493.0,1.82115381]
[1729866082273,4e-05,68494.0,68493.0,1.89845381]
[1729866085702,0.000825,68498.0,68497.0,0.274391]
[1729866085924,1e-06,68499.0,68498.0,0.77210728]
[1729866086141,1e-06,68499.0,68498.0,0.67375195]
[1729866086406,1e-06,68499.0,68498.0,2.17375195]
[1729866087302,1e-06,68499.0,68498.0,2.60171109]
[1729866087529,1e-06,68499.0,68498.0,2.64438896]
[1729866087760,1e-06,68499.0,68498.0,2.60171109]
[1729866088206,1e-06,68499.0,68498.0,2.62251478]
[1729866088426,1e-06,68499.0,68498.0,2.37365564]
[1729866091121,1e-06,68499.0,68498.0,2.13153285]
[1729866091342,1e-06,68499.0,68498.0,2.05223285]
[1729866091608,1e-06,68499.0,68498.0,1.80337371]
[1729866091831,1e-06,68499.0,68498.0,0.80109199]
[1729866092056,1e-06,68499.0,68498.0,0.84511232]
[1729866092307,1e-06,68499.0,68498.0,2.34511232]
[1729866092556,1e-06,68499.0,68498.0,2.30649199]
[1729866092763,1e-06,68499.0,68498.0,2.32949199]
[1729866093015,1e-06,68499.0,68498.0,2.42949199]
[1729866093229,1e-06,68499.0,68498.0,2.44334236]
[1729866094338,0.000865,68517.0,68506.0,0.0054]
[1729866094551,0.000865,68517.0,68516.0,0.56831395]
[1729866094995,0.0046,68533.0,68516.0,2.02858597]
[1729866095213,0.0046,68531.0,68520.0,0.41944581]
[1729866095671,0.0046,68531.0,68520.0,0.42566873]
[1729866095903,0.0046,68536.0,68520.0,0.43106873]
[1729866096144,0.0046,68536.0,68520.0,0.42566873]
[1729866096377,0.0046,68536.0,68520.0,0.43310658]
[1729866096611,0.0046,68543.0,68520.0,0.68196572]
[1729866096848,0.0046,68541.0,68520.0,0.77986572]
[1729866097104,0.005,68549.0,68539.0,0.41776114]
[1729866097105,0.0046,68549.0,68539.0,0.41776114]
[1729866097350,0.005,68550.0,68539.0,0.41776114]
[1729866097351,0.0046,68545.0,68539.0,2.14416495]
[1729866097599,0.0046,68545.0,68539.0,2.15033827]
[1729866100131,0.000827,68551.0,68539.0,2.25573827]
[1729866101342,0.000864,68540.0,68539.0,2.25573827]
[1729866101805,0.000864,68540.0,68539.0,2.25551927]
[1729866102249,0.000864,68540.0,68539.0,2.26916596]
[1729866102752,0.000827,68551.0,68547.0,0.168885]
[1729866102992,0.000827,68551.0,68547.0,0.57116476]
[1729866103236,0.000827,68551.0,68547.0,0.57376815]
[1729866103455,0.000827,68551.0,68547.0,0.70418474]
[1729866103694,0.000827,68551.0,68547.0,2.20418474]
[1729866103946,0.000827,68551.0,68547.0,2.17376815]
[1729866106483,0.000827,68551.0,68547.0,2.17576815]
[1729866107809,0.000865,68548.0,68547.0,2.17576815]
[1729866108544,0.000865,68548.0,68547.0,2.17376815]
[1729866108987,0.000865,68548.0,68547.0,2.18754199]
[1729866110335,0.000865,68548.0,68547.0,2.1102839]
[1729866113944,0.000865,68548.0,68547.0,1.93868285]
[1729866114199,0.000865,68548.0,68547.0,0.43868285]
[1729866114671,0.000865,68548.0,68547.0,0.41568285]
[1729866114899,0.000865,68548.0,68547.0,0.15602401]
[1729866114900,0.010465,68548.0,68547.0,0.15602401]
[1729866115124,0.010465,68548.0,68547.0,0.0055202]
[1729866115567,0.0046,68543.0,68542.0,0.36611566]
[1729866115787,0.0046,68543.0,68542.0,0.51661947]
[1729866116026,0.0046,68543.0,68542.0,0.29639881]
[1729866117414,0.0046,68543.0,68542.0,0.17642158]
[1729866117662,0.0046,68544.0,68543.0,0.168893]
[1729866117907,0.0046,68544.0,68543.0,0.49391524]
[1729866118141,0.0046,68544.0,68543.0,1.99099786]
[1729866119116,0.005465,68548.0,68547.0,0.145885]
[1729866119356,0.000827,68551.0,68547.0,0.145885]
[1729866119357,0.000827,68551.0,68547.0,0.34802223]
[1729866119569,0.000827,68551.0,68550.0,0.31938181]
[1729866120101,0.000827,68551.0,68550.0,1.81938181]
[1729866120321,0.000827,68551.0,68550.0,2.06754765]
[1729866121685,0.000827,68551.0,68550.0,2.08102765]
[1729866122812,0.000827,68551.0,68550.0,2.06754765]
[1729866123280,0.005427,68551.0,68550.0,2.06754765]
[1729866124034,0.005427,68551.0,68550.0,2.31571349]
[1729866124035,0.000827,68551.0,68550.0,2.31571349]
[1729866124261,0.005,68565.0,68550.0,2.31571349]
[1729866124262,0.00524,68580.0,68559.0,0.023]
[1729866124491,2e-07,68561.0,68560.0,0.57044271]
[1729866124749,2e-07,68561.0,68560.0,0.56752665]
[1729866124976,2e-07,68561.0,68560.0,0.66952665]
[1729866125205,2e-07,68561.0,68560.0,2.16752665]
[1729866125427,2e-07,68561.0,68560.0,2.16952665]
[1729866125641,0.0096879,68569.0,68568.0,0.41700584]
[1729866125863,0.00024,68580.0,68576.0,0.145823]
[1729866126089,0.00024,68580.0,68576.0,0.57040863]
[1729866126333,0.0009192,68596.0,68587.0,0.1688]
[1729866126334,0.000826,68590.0,68587.0,0.1688]
[1729866126583,0.000826,68590.0,68587.0,0.31930381]
[1729866127053,0.000826,68590.0,68587.0,0.42745321]
[1729866129960,0.00504,68588.0,68587.0,0.42745321]
[1729866130195,4e-05,68588.0,68587.0,0.42745321]
[1729866130578,0.0828752,68600.0,68599.0,0.145774]
[1729866130803,0.0828752,68600.0,68599.0,0.56744365]
[1729866130993,0.0828752,68600.0,68599.0,0.57552593]
[1729866132572,0.0828752,68600.0,68599.0,0.32736009]
[1729866132794,0.0828752,68600.0,68599.0,0.57552593]
[1729866133881,0.0836992,68600.0,68599.0,0.57552593]
[1729866134110,0.00100327,68609.0,68603.0,0.01]
[1729866134351,0.00100327,68609.0,68608.0,0.52166965]
[1729866134799,0.00100327,68609.0,68608.0,0.52971437]
[1729866135284,0.00100327,68609.0,68608.0,0.52967437]
[1729866136178,0.00100327,68609.0,68608.0,0.57118812]
[1729866136861,0.00100327,68609.0,68608.0,0.52967437]
[1729866137584,0.00100327,68609.0,68608.0,0.67542937]
[1729866138302,0.00104327,68609.0,68608.0,0.67542937]
[1729866139203,0.00104327,68609.0,68608.0,0.89565003]
[1729866139450,0.00104327,68609.0,68608.0,0.67542937]
[1729866140584,0.00104327,68609.0,68608.0,0.42726353]
[1729866141051,0.00104327,68609.0,68608.0,0.48077728]
[1729866141276,0.00104327,68609.0,68608.0,0.55437728]
[1729866141502,0.00104327,68609.0,68608.0,0.51286353]
[1729866142428,0.00104327,68609.0,68608.0,0.68411054]
[1729866142653,0.00104327,68609.0,68608.0,0.42726353]
[1729866142950,0.00104327,68609.0,68608.0,0.40426353]
[1729866144111,0.00104327,68609.0,68608.0,0.42726353]
[1729866144332,2.7e-07,68609.0,68608.0,0.47877728]
[1729866144815,2.7e-07,68609.0,68608.0,0.43726353]
[1729866145030,2.7e-07,68609.0,68608.0,0.43891153]
[1729866145938,0.00082427,68609.0,68608.0,0.43891153]
[1729866146371,2.7e-07,68609.0,68608.0,0.43891153]
[1729866148806,2.7e-07,68609.0,68608.0,0.42891153]
[1729866149037,2.7e-07,68609.0,68608.0,0.43891153]
[1729866149991,2.7e-07,68609.0,68608.0,0.48042528]
[1729866150240,0.78659415,68618.0,68617.0,0.268736]
[1729866150459,0.77115735,68618.0,68617.0,0.59048682]
[1729866150700,0.76212034,68618.0,68617.0,0.67454595]
[1729866151619,0.76212034,68618.0,68617.0,0.59824595]
[1729866151848,0.76212034,68618.0,68617.0,0.40399894]
[1729866152078,0.76212034,68618.0,68617.0,0.30399894]
[1729866152296,0.76212034,68618.0,68617.0,0.69546661]
[1729866152770,0.76212034,68618.0,68617.0,0.47524595]
[1729866153431,0.76212034,68618.0,68617.0,0.49824595]
[1729866156305,0.76212034,68618.0,68617.0,0.30399894]
[1729866157490,0.85832034,68618.0,68617.0,0.5242196]
[1729866157705,0.85832034,68618.0,68617.0,0.30564494]
[1729866157925,0.85914334,68618.0,68617.0,0.30564494]
[1729866158616,0.86414334,68618.0,68617.0,0.30564494]
[1729866158865,0.85914334,68618.0,68617.0,0.30564494]
[1729866159087,0.85914334,68618.0,68617.0,0.47689195]
[1729866159310,0.76294334,68618.0,68617.0,0.47689195]
[1729866159530,0.76294334,68618.0,68617.0,0.30564494]
[1729866159780,0.76798334,68618.0,68617.0,0.30564494]
[1729866160001,0.76298334,68618.0,68617.0,0.32864494]
[1729866161347,0.76798334,68618.0,68617.0,0.15990894]
[1729866161581,0.76798334,68618.0,68617.0,0.30564494]
[1729866162290,0.76798334,68618.0,68617.0,0.47689195]
[1729866162966,0.76798334,68618.0,68617.0,0.30564494]
[1729866163202,0.76298334,68618.0,68617.0,0.49989195]
[1729866163426,0.76798334,68618.0,68617.0,0.49989195]
[1729866163688,0.76298334,68618.0,68617.0,0.49989195]
[1729866165032,0.76798334,68618.0,68617.0,0.15990894]
[1729866165280,0.95798334,68618.0,68617.0,0.00940513]
[1729866165734,0.95798334,68618.0,68617.0,0.001646]
[1729866166174,0.9716223,68618.0,68617.0,0.001646]
[1729866166395,0.94798334,68618.0,68617.0,0.001646]
[1729866167110,0.94798334,68618.0,68617.0,0.00815039]
[1729866167347,0.94798334,68618.0,68617.0,0.001646]
[1729866167572,0.94798334,68618.0,68617.0,0.00815039]
[1729866167782,0.94798334,68618.0,68617.0,0.001646]
[1729866167994,0.94798334,68618.0,68617.0,0.00815039]
[1729866168233,0.94798334,68618.0,68617.0,0.001646]
[1729866168673,0.94798334,68618.0,68617.0,0.00815039]
[1729866168674,0.95888507,68618.0,68617.0,0.00815039]
[1729866168889,0.94798334,68618.0,68617.0,0.001646]
[1729866169309,0.94798334,68618.0,68617.0,0.1586884]
[1729866169532,0.94298334,68618.0,68617.0,0.15214981]
[1729866169754,0.86068334,68618.0,68617.0,0.1586884]
[1729866170057,0.76798334,68618.0,68617.0,0.3044244]
[1729866170329,0.76798334,68618.0,68617.0,0.49867141]
[1729866170551,0.76298334,68618.0,68617.0,0.49867141]
[1729866171217,0.76298334,68618.0,68617.0,0.3274244]
[1729866171446,0.76798334,68618.0,68617.0,0.3274244]
[1729866172325,0.76798334,68618.0,68617.0,0.49867141]
[1729866172572,0.76298334,68618.0,68617.0,0.49867141]
[1729866173040,0.76298334,68618.0,68617.0,0.64303848]
[1729866173277,0.76298334,68618.0,68617.0,0.70685536]
[1729866173506,0.1002288,68636.0,68617.0,0.70685536]
[1729866173507,0.0178288,68636.0,68620.0,0.01]
[1729866173717,0.0178288,68636.0,68629.0,0.27350381]
[1729866173961,0.0178288,68636.0,68629.0,1.77350381]
[1729866174178,0.0178288,68636.0,68629.0,1.95123982]
[1729866174620,0.0178288,68636.0,68629.0,1.99377301]
[1729866174848,0.0178288,68636.0,68629.0,1.95123982]
[1729866175320,0.0178288,68636.0,68629.0,1.77999281]
[1729866176902,0.0178288,68636.0,68629.0,1.92570281]
[1729866177575,0.0178288,68636.0,68629.0,0.42570281]
[1729866177807,0.0178288,68636.0,68629.0,0.43966166]
[1729866178026,0.0178288,68636.0,68629.0,1.93966166]
[1729866178965,0.0178288,68636.0,68629.0,0.43966166]
[1729866179416,0.0178288,68636.0,68629.0,1.93966166]
[1729866179639,0.0178288,68636.0,68629.0,2.0580719]
[1729866179856,8e-05,68630.0,68629.0,2.01556166]
[1729866180815,2e-07,68631.0,68630.0,0.280708]
[1729866181038,2e-07,68631.0,68630.0,0.42921181]
[1729866181295,2e-07,68631.0,68630.0,0.43558415]
[1729866181518,2e-07,68631.0,68630.0,1.93558415]
[1729866182913,2e-07,68631.0,68630.0,1.92921181]
[1729866183808,2e-07,68631.0,68630.0,1.97167309]
[1729866184510,2e-07,68631.0,68630.0,1.92921181]
[1729866184730,2e-07,68631.0,68630.0,2.00410035]
[1729866184949,2e-07,68631.0,68630.0,1.99288885]
[1729866185177,2e-07,68631.0,68630.0,2.03439555]
[1729866185405,2e-07,68631.0,68630.0,1.9928818]
[1729866185865,2e-07,68631.0,68630.0,1.93121181]
[1729866186087,0.00017683,68646.0,68645.0,0.268677]
[1729866186309,0.00017683,68646.0,68645.0,0.41918081]
[1729866186528,0.00017683,68646.0,68645.0,0.59042782]
[1729866186772,0.00017683,68646.0,68645.0,2.09042782]
[1729866186995,0.00017683,68646.0,68645.0,1.81918081]
[1729866189976,0.00017683,68646.0,68645.0,2.03194157]
[1729866190205,0.00017683,68646.0,68645.0,2.09042782]
[1729866191114,0.00017683,68646.0,68645.0,2.37918858]
[1729866191593,7.9e-07,68648.0,68647.0,0.278672]
[1729866191825,7.9e-07,68648.0,68647.0,0.43208816]
[1729866192037,7.9e-07,68648.0,68647.0,0.42917581]
[1729866192538,7.9e-07,68648.0,68647.0,1.92913581]
[1729866192781,0.0006822,68666.0,68647.0,1.92913581]
[1729866192782,0.0006822,68666.0,68665.0,0.268634]
[1729866193026,0.00484979,68683.0,68668.0,0.245628]
[1729866193273,0.00484979,68683.0,68668.0,0.43204331]
[1729866193526,0.00484979,68683.0,68668.0,1.92913181]
[1729866193765,0.005,68681.0,68668.0,1.91913181]
[1729866194018,0.00484979,68683.0,68668.0,1.91913181]
[1729866194019,0.005,68673.0,68668.0,1.81913181]
[1729866194466,0.00484979,68683.0,68668.0,1.81913181]
[1729866194467,0.005,68675.0,68668.0,1.81913181]
[1729866196123,0.005,68674.0,68668.0,0.31913181]
[1729866196366,0.005826,68669.0,68668.0,0.31913181]
[1729866196616,0.000826,68669.0,68668.0,0.31913181]
[1729866196870,0.000826,68669.0,68668.0,0.15050381]
[1729866196871,0.005826,68669.0,68668.0,0.15050381]
[1729866197336,0.005826,68669.0,68649.0,0.39146767]
[1729866197337,0.005,68654.0,68649.0,0.22022066]
[1729866198007,0.005,68652.0,68651.0,0.145664]
[1729866198505,0.005,68652.0,68648.0,0.291337]
[1729866198745,0.005,68650.0,68649.0,0.15050381]
[1729866198963,0.005,68650.0,68628.0,0.22522066]
[1729866198964,0.005,68637.0,68633.0,0.582802]
[1729866199187,0.076,68652.0,68635.0,0.36591866]
[1729866199188,0.005,68636.0,68635.0,0.36591866]
[1729866199410,0.005,68636.0,68628.0,0.22022066]
[1729866199411,0.005,68634.0,68630.0,0.291416]
[1729866199661,0.005,68634.0,68628.0,0.22022066]
[1729866199910,0.005,68634.0,68633.0,0.145702]
[1729866200133,0.005,68639.0,68638.0,0.145691]
[1729866200374,0.005,68639.0,68638.0,0.14860453]
[1729866200597,0.005,68639.0,68638.0,0.29619481]
[1729866201085,0.005,68639.0,68638.0,0.15050381]
[1729866201330,0.1035,68639.0,68638.0,0.15050381]
[1729866201564,0.005,68639.0,68638.0,0.29619481]
[1729866202030,0.005,68640.0,68639.0,0.145689]
[1729866202248,0.005,68640.0,68639.0,0.29619281]
[1729866202909,0.005,68640.0,68639.0,0.15050381]
[1729866203137,0.0985,68648.0,68629.0,0.291419]
[1729866203138,0.005,68630.0,68629.0,0.291419]
[1729866203366,0.005,68630.0,68629.0,0.58763281]
[1729866205230,0.005,68630.0,68617.0,0.147382]
[1729866205231,0.005,68618.0,68617.0,0.147382]
[1729866205464,0.005,68618.0,68617.0,0.29788581]
[1729866206387,0.005,68621.0,68620.0,0.14573]
[1729866206603,0.005,68621.0,68620.0,0.29623381]
[1729866207057,0.005,68633.0,68620.0,0.29623381]
[1729866207058,0.005,68627.0,68626.0,0.168717]
[1729866207294,0.005,68627.0,68626.0,0.56970406]
[1729866207536,0.082125,68639.0,68626.0,0.56970406]
[1729866207537,4e-05,68630.0,68629.0,0.14571]
[1729866207771,4e-05,68630.0,68629.0,0.56969681]
[1729866208011,4e-05,68630.0,68629.0,0.56678307]
[1729866208226,4e-05,68630.0,68629.0,0.31921381]
[1729866212157,4e-05,68630.0,68629.0,0.29171381]
[1729866213556,0.00504,68630.0,68629.0,0.26871381]
[1729866214709,0.00504,68630.0,68629.0,0.34120999]
[1729866214932,0.00504,68630.0,68629.0,0.29621381]
[1729866215875,0.00504,68630.0,68620.0,0.24756926]
[1729866215876,0.005,68620.0,68619.0,0.291463]
[1729866216095,4e-05,68630.0,68629.0,0.00165]
[1729866216366,0.00504,68630.0,68629.0,0.14736]
[1729866217036,0.00504,68630.0,68629.0,0.00165]
[1729866219042,0.00504,68630.0,68629.0,0.00803093]
[1729866219284,0.00504,68630.0,68629.0,0.00165]
[1729866219502,0.00504,68630.0,68629.0,0.00803093]
[1729866219716,0.00504,68630.0,68629.0,0.00165]
[1729866219938,0.00504,68630.0,68629.0,0.00803093]
[1729866220396,0.09804,68630.0,68629.0,0.00165]
[1729866220614,0.09804,68630.0,68612.0,0.22022066]
[1729866220615,0.005,68618.0,68612.0,0.22022066]
[1729866220829,0.155734,68618.0,68612.0,0.22022066]
[1729866221540,0.165734,68618.0,68604.0,0.51174766]
[1729866221760,0.261534,68618.0,68605.0,0.145761]
[1729866221976,0.261534,68618.0,68617.0,0.001214]
[1729866222398,0.1158,68618.0,68617.0,0.001214]
[1729866223274,0.1108,68618.0,68617.0,0.001214]
[1729866223712,0.1058,68618.0,68617.0,0.001214]
[1729866224404,0.005,68618.0,68617.0,0.29745381]
[1729866224605,0.005,68619.0,68618.0,0.168734]
[1729866224816,0.005,68619.0,68618.0,0.32215216]
[1729866225029,0.005,68619.0,68618.0,0.31923781]
[1729866227275,0.005,68619.0,68618.0,0.15050381]
[1729866227503,0.005,68618.0,68617.0,0.001214]
[1729866227743,0.005,68618.0,68617.0,0.15171781]
[1729866228443,0.005,68618.0,68617.0,0.29745381]
[1729866228907,0.005,68618.0,68617.0,0.54502307]
[1729866232286,0.005,68618.0,68617.0,0.29745381]
[1729866232291,0.000865,68630.0,68617.0,0.29745381]
[1729866232292,0.005,68625.0,68618.0,0.291468]
[1729866232500,0.005,68626.0,68625.0,0.437153]
[1729866232716,0.005,68626.0,68625.0,0.58765681]
[1729866233688,0.000865,68630.0,68629.0,0.14571]
[1729866233908,0.000865,68630.0,68629.0,0.64228307]
[1729866234135,0.000865,68630.0,68629.0,0.56678307]
[1729866235043,0.000865,68630.0,68629.0,0.31921381]
[1729866235273,0.000865,68630.0,68629.0,0.15050381]
[1729866235274,0.005865,68630.0,68629.0,0.15050381]
[1729866235503,0.005865,68630.0,68629.0,0.29621381]
[1729866237581,0.005865,68630.0,68629.0,0.15050381]
[1729866238225,0.005865,68630.0,68629.0,0.29621381]
[1729866239582,0.005865,68630.0,68629.0,1.79621381]
[1729866241000,0.000865,68630.0,68629.0,1.81921381]
[1729866244206,0.005865,68630.0,68629.0,1.65050381]
[1729866244432,0.005865,68630.0,68617.0,0.101214]
[1729866244433,0.005,68622.0,68621.0,0.145726]
[1729866244654,0.005,68622.0,68621.0,0.29622981]
[1729866246238,0.005,68622.0,68621.0,0.15050381]
[1729866246461,0.005,68618.0,68617.0,0.001214]
[1729866247677,0.01,68618.0,68617.0,0.001214]
[1729866248722,0.337674,68618.0,68617.0,0.001214]
[1729866248949,0.68524326,68618.0,68617.0,0.001214]
[1729866249172,0.437674,68618.0,68617.0,0.001214]
[1729866249596,0.01,68609.0,68608.0,0.36461701]
[1729866249819,0.01,68609.0,68608.0,0.51512082]
[1729866250251,0.01,68609.0,68608.0,0.29625881]
[1729866250908,0.005,68609.0,68608.0,0.29625881]
[1729866251134,0.01,68609.0,68608.0,0.29625881]
[1729866251594,0.01004,68609.0,68608.0,0.15050381]
[1729866253384,0.005,68602.0,68594.0,0.291569]
[1729866253611,0.005,68602.0,68598.0,0.145776]
[1729866253840,0.005,68602.0,68601.0,0.14577]
[1729866254072,0.005,68602.0,68601.0,0.29627381]
[1729866254307,0.005,68602.0,68601.0,0.34126999]
[1729866254535,4e-05,68609.0,68603.0,0.291532]
[1729866254765,4e-05,68609.0,68608.0,0.41925881]
[1729866254979,4e-05,68618.0,68617.0,0.168736]
[1729866255198,4e-05,68618.0,68617.0,0.32215393]
[1729866255463,0.00504,68618.0,68617.0,1.79623981]
[1729866256148,4e-05,68618.0,68617.0,1.79623981]
[1729866256362,4e-05,68618.0,68617.0,2.06680907]
[1729866257009,0.00504,68618.0,68617.0,1.89807307]
[1729866257220,0.00504,68618.0,68617.0,1.79623981]
[1729866257432,4e-05,68618.0,68617.0,0.56680907]
[1729866257863,4e-05,68618.0,68617.0,2.06680907]
[1729866258292,4e-05,68618.0,68617.0,2.06398971]
[1729866260475,4e-05,68618.0,68617.0,2.05898971]
[1729866260985,4e-05,68618.0,68617.0,0.55898971]
[1729866261198,8e-05,68624.0,68623.0,0.145723]
[1729866261423,0.000865,68630.0,68629.0,0.14571]
[1729866261644,0.000865,68630.0,68629.0,0.32212759]
[1729866261859,0.000865,68630.0,68629.0,0.31921381]
[1729866262079,0.000865,68630.0,68629.0,0.29621381]